[Event "*** Titled Tuesday Blitz"]
[Site "Chess.com"]
[Date "2018.09.04"]
[Round "4"]
[White "menor31"]
[Black "MFguimaraes"]
[Result "1-0"]
[WhiteElo "2459"]
[BlackElo "2299"]
[TimeControl "180+2"]
[EndTime "14:26:24 PDT"]
[Termination "menor31 won on time"]

1. c4 {[%clk 0:02:58.7]} 1... c6 {[%clk 0:03:00.1]} 2. Nf3 {[%clk 0:02:59.4]}
2... d5 {[%clk 0:03:01.3]} 3. g3 {[%clk 0:03:01.3]} 3... Nf6 {[%clk 0:03:02.7]}
4. Bg2 {[%clk 0:02:59.7]} 4... Bg4 {[%clk 0:03:02.2]} 5. Qc2 {[%clk 0:02:59.5]}
5... Nbd7 {[%clk 0:03:02.1]} 6. O-O {[%clk 0:02:59.5]} 6... e5 {[%clk
0:03:03.3]} 7. d3 {[%clk 0:02:59.1]} 7... Bd6 {[%clk 0:03:03.4]} 8. Nbd2 {[%clk
0:02:57.1]} 8... h6 {[%clk 0:03:04.3]} 9. Re1 {[%clk 0:02:57.3]} 9... d4 {[%clk
0:03:01]} 10. Rb1 {[%clk 0:02:56.6]} 10... a5 {[%clk 0:03:01.4]} 11. a3 {[%clk
0:02:55.1]} 11... a4 {[%clk 0:02:59.2]} 12. h3 {[%clk 0:02:52.8]} 12... Bf5
{[%clk 0:02:56.2]} 13. Nh4 {[%clk 0:02:51.9]} 13... Bh7 {[%clk 0:02:56.6]} 14.
Ne4 {[%clk 0:02:52]} 14... Nxe4 {[%clk 0:02:56.2]} 15. dxe4 {[%clk 0:02:47]}
15... O-O {[%clk 0:02:50.2]} 16. Nf5 {[%clk 0:02:47.1]} 16... Nc5 {[%clk
0:02:46]} 17. Bd2 {[%clk 0:02:31]} 17... Bxf5 {[%clk 0:02:33.4]} 18. exf5 {[%clk
0:02:30.9]} 18... Nb3 {[%clk 0:02:30.8]} 19. Rbd1 {[%clk 0:02:31.1]} 19... Qd7
{[%clk 0:02:23.8]} 20. Qe4 {[%clk 0:02:30.6]} 20... Nxd2 {[%clk 0:02:12]} 21.
Rxd2 {[%clk 0:02:30]} 21... Rae8 {[%clk 0:02:05.2]} 22. Qg4 {[%clk 0:02:29.7]}
22... Kh8 {[%clk 0:02:02.1]} 23. Be4 {[%clk 0:02:29.9]} 23... Bc5 {[%clk
0:01:53.2]} 24. Qh5 {[%clk 0:02:26.1]} 24... Qe7 {[%clk 0:01:50.7]} 25. h4
{[%clk 0:02:24.5]} 25... Qf6 {[%clk 0:01:50.1]} 26. Rd3 {[%clk 0:02:24.4]} 26...
Kg8 {[%clk 0:01:44.2]} 27. Rf3 {[%clk 0:02:23.1]} 27... Rd8 {[%clk 0:01:38.6]}
28. g4 {[%clk 0:02:23.5]} 28... Be7 {[%clk 0:01:39]} 29. Rh3 {[%clk 0:02:22.6]}
29... g6 {[%clk 0:01:38.5]} 30. Qxh6 {[%clk 0:02:12.1]} 30... gxf5 {[%clk
0:01:37.7]} 31. Qxf6 {[%clk 0:02:12.7]} 31... Bxf6 {[%clk 0:01:37.5]} 32. Bxf5
{[%clk 0:02:14.6]} 32... Kg7 {[%clk 0:01:30]} 33. g5 {[%clk 0:02:15.1]} 33...
Be7 {[%clk 0:01:30.4]} 34. Kg2 {[%clk 0:02:17]} 34... f6 {[%clk 0:01:29.2]} 35.
g6 {[%clk 0:02:16.5]} 35... Rh8 {[%clk 0:01:25.9]} 36. h5 {[%clk 0:02:16.6]}
36... Rh6 {[%clk 0:01:19.9]} 37. Kf3 {[%clk 0:02:17.2]} 37... b5 {[%clk
0:01:13.8]} 38. cxb5 {[%clk 0:02:16.9]} 38... cxb5 {[%clk 0:01:15]} 39. Rc1
{[%clk 0:02:18.1]} 39... Bd6 {[%clk 0:01:15.2]} 40. Rc6 {[%clk 0:02:17.8]} 40...
Rhh8 {[%clk 0:01:03]} 41. Rh1 {[%clk 0:01:59.4]} 41... b4 {[%clk 0:01:03.7]} 42.
axb4 {[%clk 0:01:58.5]} 42... Bxb4 {[%clk 0:01:04.6]} 43. Rc7+ {[%clk
0:01:59.4]} 43... Kh6 {[%clk 0:01:05.3]} 44. Rg1 {[%clk 0:01:49.5]} 44... Rde8
{[%clk 0:00:33.4]} 45. g7 {[%clk 0:01:42.9]} 45... Rhg8 {[%clk 0:00:29.7]} 46.
Rg6+ {[%clk 0:01:43.8]} 46... Kxh5 {[%clk 0:00:30.5]} 47. Rc1 {[%clk 0:01:44.5]}
1-0

[Event "*** Titled Tuesday Blitz"]
[Site "Chess.com"]
[Date "2018.09.04"]
[Round "4"]
[White "LucaBrasi1968"]
[Black "mjray79"]
[Result "1-0"]
[WhiteElo "2440"]
[BlackElo "2040"]
[TimeControl "180+2"]
[EndTime "14:26:24 PDT"]
[Termination "LucaBrasi1968 won by resignation"]

1. e4 {[%clk 0:03:01.9]} 1... c5 {[%clk 0:03:00.5]} 2. c3 {[%clk 0:03:02.5]}
2... Nf6 {[%clk 0:02:59.3]} 3. e5 {[%clk 0:03:01.5]} 3... Nd5 {[%clk 0:03:00]}
4. d4 {[%clk 0:03:03.1]} 4... cxd4 {[%clk 0:02:57.1]} 5. Qxd4 {[%clk 0:03:04.5]}
5... e6 {[%clk 0:02:54]} 6. Nf3 {[%clk 0:03:05.9]} 6... Nc6 {[%clk 0:02:53.9]}
7. Qe4 {[%clk 0:03:07.4]} 7... f5 {[%clk 0:02:52.3]} 8. Qe2 {[%clk 0:03:07.8]}
8... Be7 {[%clk 0:02:52.1]} 9. g3 {[%clk 0:03:09]} 9... b6 {[%clk 0:02:48.4]}
10. Bg2 {[%clk 0:03:10]} 10... Bb7 {[%clk 0:02:48.9]} 11. O-O {[%clk 0:03:09.8]}
11... O-O {[%clk 0:02:49]} 12. c4 {[%clk 0:03:10.6]} 12... Nc7 {[%clk 0:02:45]}
13. Rd1 {[%clk 0:03:11.3]} 13... Na6 {[%clk 0:02:33.7]} 14. Nc3 {[%clk
0:03:10.6]} 14... Qe8 {[%clk 0:02:31.1]} 15. b3 {[%clk 0:03:00]} 15... Rd8
{[%clk 0:02:30]} 16. Nb5 {[%clk 0:02:57.7]} 16... Nc5 {[%clk 0:02:18.5]} 17. Nc3
{[%clk 0:02:36.8]} 17... Qh5 {[%clk 0:02:10.8]} 18. Nd4 {[%clk 0:02:14.3]} 18...
Qxe2 {[%clk 0:02:06.4]} 19. Ndxe2 {[%clk 0:02:14.4]} 19... Nxe5 {[%clk
0:02:04.1]} 20. Bxb7 {[%clk 0:02:10.4]} 20... Nxb7 {[%clk 0:02:04.2]} 21. Kg2
{[%clk 0:02:11.1]} 21... Nc5 {[%clk 0:02:02.9]} 22. Bf4 {[%clk 0:02:06.5]} 22...
Ned3 {[%clk 0:01:59.7]} 23. Be3 {[%clk 0:02:02.9]} 23... g5 {[%clk 0:01:49.2]}
24. f4 {[%clk 0:02:00.1]} 24... g4 {[%clk 0:01:40.3]} 25. Rd2 {[%clk 0:01:59.9]}
25... h5 {[%clk 0:01:33.2]} 26. Rad1 {[%clk 0:01:59.1]} 26... h4 {[%clk
0:01:10.9]} 27. Rxd3 {[%clk 0:01:58.4]} 27... Nxd3 {[%clk 0:01:10.9]} 28. Rxd3
{[%clk 0:01:58.5]} 28... h3+ {[%clk 0:01:10.8]} 29. Kf2 {[%clk 0:01:58.5]} 29...
Bc5 {[%clk 0:01:08.9]} 30. Nd4 {[%clk 0:01:49.2]} 30... Kf7 {[%clk 0:00:56.9]}
31. Ndb5 {[%clk 0:01:41.2]} 31... a6 {[%clk 0:00:51.8]} 32. Nd4 {[%clk
0:01:32.1]} 32... Ke7 {[%clk 0:00:48.3]} 33. Nce2 {[%clk 0:01:24]} 33... d5
{[%clk 0:00:42.9]} 34. Nc6+ {[%clk 0:01:23.9]} 34... Kd6 {[%clk 0:00:39.9]} 35.
Nxd8 {[%clk 0:01:23.6]} 35... Rxd8 {[%clk 0:00:39.7]} 36. cxd5 {[%clk
0:01:24.1]} 36... exd5 {[%clk 0:00:38.1]} 37. Nd4 {[%clk 0:01:20.8]} 37... Bxd4
{[%clk 0:00:31.3]} 38. Bxd4 {[%clk 0:01:20.3]} 38... Rc8 {[%clk 0:00:32]} 39.
Rc3 {[%clk 0:01:15.9]} 39... Rxc3 {[%clk 0:00:24.4]} 40. Bxc3 {[%clk 0:01:16.2]}
40... Kc5 {[%clk 0:00:24]} 41. Ke3 {[%clk 0:01:16.9]} 41... b5 {[%clk 0:00:23]}
42. Kd3 {[%clk 0:01:17.9]} 42... b4 {[%clk 0:00:17.5]} 43. Bg7 {[%clk
0:01:17.5]} 43... a5 {[%clk 0:00:17.6]} 44. Bf8+ {[%clk 0:01:18]} 44... Kb5
{[%clk 0:00:17.4]} 45. Kd4 {[%clk 0:01:19.1]} 45... a4 {[%clk 0:00:18.1]} 46.
Be7 {[%clk 0:01:18.3]} 46... axb3 {[%clk 0:00:16.9]} 47. axb3 {[%clk 0:01:18.4]}
47... Kc6 {[%clk 0:00:17.6]} 48. Bxb4 {[%clk 0:01:19.2]} 1-0

[Event "*** Titled Tuesday Blitz"]
[Site "Chess.com"]
[Date "2018.09.04"]
[Round "4"]
[White "2165149677570"]
[Black "oskariot"]
[Result "1/2-1/2"]
[WhiteElo "2296"]
[BlackElo "2475"]
[TimeControl "180+2"]
[EndTime "14:26:28 PDT"]
[Termination "Game drawn by repetition"]

1. e4 {[%clk 0:03:01.9]} 1... g6 {[%clk 0:02:58.5]} 2. d4 {[%clk 0:03:02.7]}
2... Bg7 {[%clk 0:02:59.7]} 3. Nc3 {[%clk 0:03:03.3]} 3... d6 {[%clk 0:02:59]}
4. Be3 {[%clk 0:03:04.5]} 4... a6 {[%clk 0:03:00.3]} 5. a4 {[%clk 0:03:04.8]}
5... Nf6 {[%clk 0:02:55.1]} 6. f3 {[%clk 0:03:05.8]} 6... h5 {[%clk 0:02:45.5]}
7. Qd2 {[%clk 0:03:01.3]} 7... c6 {[%clk 0:02:36.7]} 8. a5 {[%clk 0:02:59.8]}
8... Nbd7 {[%clk 0:02:11.9]} 9. Nh3 {[%clk 0:02:59.3]} 9... e5 {[%clk
0:02:09.5]} 10. Ng5 {[%clk 0:02:59.1]} 10... O-O {[%clk 0:02:08.5]} 11. Bc4
{[%clk 0:02:58.9]} 11... d5 {[%clk 0:01:31.5]} 12. exd5 {[%clk 0:02:53.4]} 12...
cxd5 {[%clk 0:01:24.6]} 13. Bb3 {[%clk 0:02:21.5]} 13... exd4 {[%clk 0:01:16.6]}
14. Bxd4 {[%clk 0:02:23.4]} 14... Nb8 {[%clk 0:01:17.9]} 15. O-O {[%clk
0:02:14.8]} 15... Nc6 {[%clk 0:01:16.9]} 16. Bb6 {[%clk 0:02:16]} 16... Qd6
{[%clk 0:01:12.9]} 17. Nxd5 {[%clk 0:02:04.7]} 17... Nxd5 {[%clk 0:01:12.6]} 18.
Bxd5 {[%clk 0:02:06.6]} 18... Be6 {[%clk 0:00:42.5]} 19. Rad1 {[%clk 0:01:49.8]}
19... Bxd5 {[%clk 0:00:39.2]} 20. Qxd5 {[%clk 0:01:51.7]} 20... Qxd5 {[%clk
0:00:33.3]} 21. Rxd5 {[%clk 0:01:53.6]} 21... Bxb2 {[%clk 0:00:34.6]} 22. Rd7
{[%clk 0:01:55]} 22... Bc3 {[%clk 0:00:22.3]} 23. Rfd1 {[%clk 0:01:28.5]} 23...
Bxa5 {[%clk 0:00:21.5]} 24. Bc5 {[%clk 0:01:29.8]} 24... Rfd8 {[%clk 0:00:21.4]}
25. Nxf7 {[%clk 0:01:27.5]} 25... Rxd7 {[%clk 0:00:21.9]} 26. Rxd7 {[%clk
0:01:28.9]} 26... b5 {[%clk 0:00:12.5]} 27. Ba3 {[%clk 0:00:59.7]} 27... Bc3
{[%clk 0:00:12.5]} 28. Nh6+ {[%clk 0:00:45]} 28... Kh8 {[%clk 0:00:13.4]} 29.
Nf7+ {[%clk 0:00:46.8]} 29... Kg8 {[%clk 0:00:14.9]} 30. Nh6+ {[%clk 0:00:19.1]}
30... Kh8 {[%clk 0:00:16.1]} 31. Nf7+ {[%clk 0:00:21]} 31... Kg8 {[%clk
0:00:17.3]} 32. Nh6+ {[%clk 0:00:22.3]} 1/2-1/2

[Event "*** Titled Tuesday Blitz"]
[Site "Chess.com"]
[Date "2018.09.04"]
[Round "4"]
[White "Supernotar"]
[Black "Alopekos"]
[Result "0-1"]
[WhiteElo "2449"]
[BlackElo "2436"]
[TimeControl "180+2"]
[EndTime "14:26:34 PDT"]
[Termination "Alopekos won by checkmate"]

1. d4 {[%clk 0:03:01.9]} 1... Nf6 {[%clk 0:03:00.4]} 2. c4 {[%clk 0:03:02.6]}
2... e6 {[%clk 0:03:01.5]} 3. Nf3 {[%clk 0:03:03.3]} 3... d5 {[%clk 0:03:02.3]}
4. e3 {[%clk 0:03:02.9]} 4... Be7 {[%clk 0:03:00.5]} 5. Nbd2 {[%clk 0:03:03.5]}
5... O-O {[%clk 0:02:58.5]} 6. b3 {[%clk 0:03:02.5]} 6... a5 {[%clk 0:02:00.4]}
7. Be2 {[%clk 0:02:59.4]} 7... a4 {[%clk 0:02:00.7]} 8. Rb1 {[%clk 0:02:58.2]}
8... axb3 {[%clk 0:02:01.2]} 9. axb3 {[%clk 0:02:58.8]} 9... Nc6 {[%clk
0:01:59.7]} 10. Bb2 {[%clk 0:02:56.8]} 10... Nb4 {[%clk 0:01:59.4]} 11. O-O
{[%clk 0:02:56.3]} 11... c6 {[%clk 0:01:45.9]} 12. Ra1 {[%clk 0:02:52.3]} 12...
Bd7 {[%clk 0:01:30.9]} 13. Ne5 {[%clk 0:02:51.7]} 13... Rxa1 {[%clk 0:01:25.2]}
14. Qxa1 {[%clk 0:02:51.2]} 14... Qa8 {[%clk 0:01:27.1]} 15. Bc3 {[%clk
0:02:47.7]} 15... Na2 {[%clk 0:01:17.4]} 16. Bb2 {[%clk 0:02:45]} 16... Qa5
{[%clk 0:01:08.3]} 17. Ndf3 {[%clk 0:02:30.8]} 17... Ra8 {[%clk 0:01:07.8]} 18.
Qb1 {[%clk 0:02:26.8]} 18... Nc3 {[%clk 0:00:43.8]} 19. Bxc3 {[%clk 0:02:27]}
19... Qxc3 {[%clk 0:00:45.7]} 20. Rc1 {[%clk 0:02:24.3]} 20... Qb4 {[%clk
0:00:41.3]} 21. Nd3 {[%clk 0:02:21.3]} 21... Qa3 {[%clk 0:00:37.9]} 22. c5
{[%clk 0:02:20]} 22... Ne4 {[%clk 0:00:32.2]} 23. Qc2 {[%clk 0:02:17.4]} 23...
Be8 {[%clk 0:00:16]} 24. g3 {[%clk 0:02:11.8]} 24... b6 {[%clk 0:00:06.4]} 25.
b4 {[%clk 0:02:12.5]} 25... bxc5 {[%clk 0:00:07.3]} 26. bxc5 {[%clk 0:02:13.6]}
26... f6 {[%clk 0:00:08.1]} 27. Kg2 {[%clk 0:02:12.9]} 27... Bg6 {[%clk
0:00:06.9]} 28. Qb2 {[%clk 0:02:06]} 28... Qxb2 {[%clk 0:00:07.3]} 29. Nxb2
{[%clk 0:02:07.2]} 29... Ra2 {[%clk 0:00:08.8]} 30. Rc2 {[%clk 0:01:57]} 30...
Nxg3 {[%clk 0:00:04.8]} 31. Rd2 {[%clk 0:01:58.3]} 31... Ne4 {[%clk 0:00:04]}
32. Rc2 {[%clk 0:01:59.5]} 32... Nxc5 {[%clk 0:00:04.3]} 33. Rd2 {[%clk
0:01:57.6]} 33... Nb3 {[%clk 0:00:05.4]} 34. Rd1 {[%clk 0:01:50.2]} 34... Rxb2
{[%clk 0:00:06.6]} 35. Bd3 {[%clk 0:01:51.6]} 35... Bxd3 {[%clk 0:00:06.8]} 36.
Rxd3 {[%clk 0:01:53.5]} 36... Bb4 {[%clk 0:00:04.3]} 37. Rd1 {[%clk 0:01:53.4]}
37... g5 {[%clk 0:00:04.9]} 38. h3 {[%clk 0:01:53.8]} 38... Kf7 {[%clk
0:00:05.8]} 39. Kg3 {[%clk 0:01:54.2]} 39... Kg6 {[%clk 0:00:06.7]} 40. h4
{[%clk 0:01:55.6]} 40... h6 {[%clk 0:00:07.5]} 41. hxg5 {[%clk 0:01:57.1]} 41...
hxg5 {[%clk 0:00:08.9]} 42. Nh2 {[%clk 0:01:58.1]} 42... Nd2 {[%clk 0:00:07.5]}
43. f3 {[%clk 0:01:57.1]} 43... Nc4 {[%clk 0:00:08.7]} 44. e4 {[%clk 0:01:57.6]}
44... Bd6+ {[%clk 0:00:09.6]} 45. e5 {[%clk 0:01:57.7]} 45... fxe5 {[%clk
0:00:11.1]} 46. Ng4 {[%clk 0:01:58.7]} 46... e4+ {[%clk 0:00:10.6]} 47. Kh3
{[%clk 0:01:59.7]} 47... exf3 {[%clk 0:00:11.4]} 48. Rf1 {[%clk 0:02:00.7]}
48... Ne3 {[%clk 0:00:07.3]} 49. Rxf3 {[%clk 0:01:54.5]} 49... Nxg4 {[%clk
0:00:08.3]} 50. Rf6+ {[%clk 0:01:55.8]} 50... Kxf6 {[%clk 0:00:07.3]} 51. Kxg4
{[%clk 0:01:57.4]} 51... Rg2+ {[%clk 0:00:07.5]} 52. Kf3 {[%clk 0:01:58.7]}
52... Rg3+ {[%clk 0:00:08.4]} 53. Kf2 {[%clk 0:02:00.3]} 53... Kf5 {[%clk
0:00:10]} 54. Kf1 {[%clk 0:02:00.8]} 54... Ke4 {[%clk 0:00:11.9]} 55. Kf2 {[%clk
0:02:02.3]} 55... g4 {[%clk 0:00:12.3]} 56. Kf1 {[%clk 0:02:03.8]} 56... Kf3
{[%clk 0:00:13.2]} 57. Ke1 {[%clk 0:02:05]} 57... Rg2 {[%clk 0:00:13.8]} 58. Kf1
{[%clk 0:02:06.5]} 58... Bf4 {[%clk 0:00:11.7]} 59. Ke1 {[%clk 0:02:07.6]} 59...
Rg1# {[%clk 0:00:13.3]} 0-1

[Event "*** Titled Tuesday Blitz"]
[Site "Chess.com"]
[Date "2018.09.04"]
[Round "4"]
[White "W_Amadeus"]
[Black "KhalilMousavi77"]
[Result "0-1"]
[WhiteElo "2562"]
[BlackElo "2751"]
[TimeControl "180+2"]
[EndTime "14:26:35 PDT"]
[Termination "KhalilMousavi77 won by resignation"]

1. d4 {[%clk 0:03:01.9]} 1... Nf6 {[%clk 0:02:57.3]} 2. c4 {[%clk 0:03:03.3]}
2... g6 {[%clk 0:02:57.9]} 3. Nc3 {[%clk 0:03:04]} 3... d5 {[%clk 0:02:57.9]} 4.
cxd5 {[%clk 0:03:02.3]} 4... Nxd5 {[%clk 0:02:57.4]} 5. e4 {[%clk 0:03:04.2]}
5... Nxc3 {[%clk 0:02:58.3]} 6. bxc3 {[%clk 0:03:06.1]} 6... Bg7 {[%clk
0:03:00.2]} 7. Be3 {[%clk 0:03:04.8]} 7... c5 {[%clk 0:02:57.7]} 8. Rc1 {[%clk
0:03:05.9]} 8... O-O {[%clk 0:02:56.1]} 9. Nf3 {[%clk 0:03:06.3]} 9... Qa5
{[%clk 0:02:53.5]} 10. Qd2 {[%clk 0:03:06.9]} 10... Bg4 {[%clk 0:02:51]} 11. d5
{[%clk 0:03:07.7]} 11... Nd7 {[%clk 0:02:48.9]} 12. c4 {[%clk 0:03:08.7]} 12...
Qa3 {[%clk 0:02:46.5]} 13. Be2 {[%clk 0:03:09.6]} 13... Bxf3 {[%clk 0:02:38.9]}
14. Bxf3 {[%clk 0:03:10.5]} 14... Bd4 {[%clk 0:02:33.2]} 15. Bxd4 {[%clk
0:03:11.2]} 15... cxd4 {[%clk 0:02:33.7]} 16. O-O {[%clk 0:03:12.4]} 16... Ne5
{[%clk 0:02:30]} 17. Qxd4 {[%clk 0:03:12.2]} 17... Nxf3+ {[%clk 0:02:27.7]} 18.
gxf3 {[%clk 0:03:13.5]} 18... Qxf3 {[%clk 0:02:29.6]} 19. Rc3 {[%clk 0:03:00.4]}
19... Qf4 {[%clk 0:02:28.2]} 20. Qe3 {[%clk 0:02:49.4]} 20... Qxe3 {[%clk
0:02:22]} 21. fxe3 {[%clk 0:02:31.6]} 21... b6 {[%clk 0:02:18.2]} 22. c5 {[%clk
0:02:32.7]} 22... bxc5 {[%clk 0:02:16.6]} 23. Rxc5 {[%clk 0:02:34.6]} 23... Rfc8
{[%clk 0:02:16.3]} 24. Rfc1 {[%clk 0:02:34.8]} 24... Rxc5 {[%clk 0:02:15]} 25.
Rxc5 {[%clk 0:02:36.7]} 25... f6 {[%clk 0:02:14]} 26. Rc7 {[%clk 0:02:32.5]}
26... Kf8 {[%clk 0:02:12.4]} 27. Kf2 {[%clk 0:02:30.7]} 27... Rb8 {[%clk
0:02:05.3]} 28. Rxa7 {[%clk 0:02:28.2]} 28... Rb2+ {[%clk 0:02:05.7]} 29. Kg3
{[%clk 0:02:25]} 29... Re2 {[%clk 0:02:06.3]} 30. Ra3 {[%clk 0:02:23.9]} 30...
Kf7 {[%clk 0:02:00.8]} 31. h4 {[%clk 0:02:23.8]} 31... h5 {[%clk 0:01:58.5]} 32.
Ra7 {[%clk 0:02:03.4]} 32... Rxe3+ {[%clk 0:01:55.8]} 33. Kf4 {[%clk 0:02:04.2]}
33... Rh3 {[%clk 0:01:53.8]} 34. d6 {[%clk 0:02:04.6]} 34... Ke6 {[%clk
0:01:46.3]} 35. dxe7 {[%clk 0:01:10.5]} 35... Kf7 {[%clk 0:01:46.6]} 36. a4
{[%clk 0:00:33.6]} 36... Rxh4+ {[%clk 0:01:46.8]} 37. Ke3 {[%clk 0:00:34.9]}
37... Rh3+ {[%clk 0:01:42.2]} 38. Kd4 {[%clk 0:00:36.1]} 38... g5 {[%clk
0:01:40.2]} 39. e5 {[%clk 0:00:29.9]} 39... fxe5+ {[%clk 0:01:39.2]} 40. Kxe5
{[%clk 0:00:31.8]} 40... g4 {[%clk 0:01:22.9]} 41. Kf4 {[%clk 0:00:32.1]} 41...
Rf3+ {[%clk 0:01:10.7]} 42. Kg5 {[%clk 0:00:33.2]} 42... g3 {[%clk 0:01:07.5]}
43. Kxh5 {[%clk 0:00:34.2]} 43... g2 {[%clk 0:01:05.8]} 44. e8=Q+ {[%clk
0:00:34.9]} 44... Kxe8 {[%clk 0:01:06.9]} 45. Rg7 {[%clk 0:00:36.4]} 45... Rh3+
{[%clk 0:01:07.8]} 0-1

[Event "*** Titled Tuesday Blitz"]
[Site "Chess.com"]
[Date "2018.09.04"]
[Round "4"]
[White "area_5"]
[Black "ajkom197"]
[Result "1-0"]
[WhiteElo "2574"]
[BlackElo "2381"]
[TimeControl "180+2"]
[EndTime "14:26:36 PDT"]
[Termination "area_5 won by resignation"]

1. b3 {[%clk 0:02:58.3]} 1... d5 {[%clk 0:03:00.5]} 2. Bb2 {[%clk 0:03:00.2]}
2... Nf6 {[%clk 0:03:01.1]} 3. Nf3 {[%clk 0:03:01.7]} 3... Bf5 {[%clk
0:03:02.5]} 4. e3 {[%clk 0:03:01.8]} 4... e6 {[%clk 0:03:03.9]} 5. Be2 {[%clk
0:02:59.9]} 5... Be7 {[%clk 0:03:04.7]} 6. Nh4 {[%clk 0:03:00.3]} 6... Bg6
{[%clk 0:03:04]} 7. O-O {[%clk 0:03:00.3]} 7... c5 {[%clk 0:03:04.6]} 8. d4
{[%clk 0:03:00]} 8... Nc6 {[%clk 0:03:05.2]} 9. dxc5 {[%clk 0:02:56.9]} 9...
Bxc5 {[%clk 0:03:05.6]} 10. Nd2 {[%clk 0:02:57.2]} 10... Qc7 {[%clk 0:03:06.3]}
11. a3 {[%clk 0:02:52.5]} 11... Bd6 {[%clk 0:03:02.7]} 12. g3 {[%clk 0:02:49.9]}
12... O-O {[%clk 0:02:57.7]} 13. c4 {[%clk 0:02:48.4]} 13... Rad8 {[%clk
0:02:56.9]} 14. cxd5 {[%clk 0:02:44.3]} 14... exd5 {[%clk 0:02:56.9]} 15. Nxg6
{[%clk 0:02:44.1]} 15... hxg6 {[%clk 0:02:57.7]} 16. Nf3 {[%clk 0:02:45]} 16...
Ne5 {[%clk 0:02:53.4]} 17. Rc1 {[%clk 0:02:44.2]} 17... Qb8 {[%clk 0:02:54.1]}
18. Qd4 {[%clk 0:02:41.7]} 18... Nxf3+ {[%clk 0:02:54.6]} 19. Bxf3 {[%clk
0:02:42.7]} 19... Rfe8 {[%clk 0:02:55.4]} 20. Rfd1 {[%clk 0:02:41.2]} 20... Be5
{[%clk 0:02:55.9]} 21. Qd2 {[%clk 0:02:42.2]} 21... Bxb2 {[%clk 0:02:56.4]} 22.
Qxb2 {[%clk 0:02:43.1]} 22... b6 {[%clk 0:02:52.5]} 23. Kg2 {[%clk 0:02:41.9]}
23... Re7 {[%clk 0:02:43.9]} 24. Rd4 {[%clk 0:02:41]} 24... Rc7 {[%clk
0:02:41.2]} 25. Rcd1 {[%clk 0:02:41.8]} 25... Rc5 {[%clk 0:02:40.7]} 26. b4
{[%clk 0:02:36.3]} 26... Rc6 {[%clk 0:02:40.4]} 27. Bxd5 {[%clk 0:02:35.5]}
27... Rcd6 {[%clk 0:02:40.4]} 28. Bf3 {[%clk 0:02:35.5]} 28... Rxd4 {[%clk
0:02:40]} 29. Rxd4 {[%clk 0:02:36.5]} 29... Rxd4 {[%clk 0:02:41.1]} 30. Qxd4
{[%clk 0:02:37.5]} 30... Qc7 {[%clk 0:02:41.8]} 31. b5 {[%clk 0:02:26.5]} 31...
Kf8 {[%clk 0:02:41.7]} 32. a4 {[%clk 0:02:27]} 32... Nd7 {[%clk 0:02:42.3]} 33.
Bc6 {[%clk 0:02:27.6]} 33... Ne5 {[%clk 0:02:39]} 34. Qe4 {[%clk 0:02:19.8]}
34... f5 {[%clk 0:02:18.3]} 35. Qd5 {[%clk 0:02:20.3]} 35... Nxc6 {[%clk
0:02:18.2]} 36. bxc6 {[%clk 0:02:19.2]} 36... Ke7 {[%clk 0:02:19.4]} 37. e4
{[%clk 0:02:18]} 37... Qd6 {[%clk 0:02:16.3]} 38. Qc4 {[%clk 0:02:06.8]} 38...
Qc5 {[%clk 0:02:16.7]} 39. Qd5 {[%clk 0:01:50.3]} 39... Qxd5 {[%clk 0:02:02.6]}
40. exd5 {[%clk 0:01:50.7]} 40... a5 {[%clk 0:02:03.8]} 41. Kf3 {[%clk
0:01:36.7]} 41... b5 {[%clk 0:02:03.9]} 42. axb5 {[%clk 0:01:37.7]} 42... a4
{[%clk 0:02:00.7]} 43. b6 {[%clk 0:01:38.8]} 43... Kd6 {[%clk 0:02:01.6]} 44. b7
{[%clk 0:01:39.7]} 44... Kc7 {[%clk 0:02:02.7]} 45. d6+ {[%clk 0:01:40.9]} 45...
Kb8 {[%clk 0:02:03.6]} 46. d7 {[%clk 0:01:42]} 46... Kc7 {[%clk 0:00:16.5]} 47.
d8=Q+ {[%clk 0:01:38.3]} 47... Kxd8 {[%clk 0:00:15.3]} 48. b8=Q+ {[%clk
0:01:39.2]} 48... Ke7 {[%clk 0:00:17.2]} 49. c7 {[%clk 0:01:40.5]} 49... Kf6
{[%clk 0:00:16.7]} 50. c8=Q {[%clk 0:01:41.2]} 50... Kg5 {[%clk 0:00:16]} 51.
Qf4+ {[%clk 0:01:41]} 51... Kf6 {[%clk 0:00:14]} 52. Qc6+ {[%clk 0:01:40.4]} 1-0

[Event "*** Titled Tuesday Blitz"]
[Site "Chess.com"]
[Date "2018.09.04"]
[Round "4"]
[White "VerdeNotte"]
[Black "gammagramma"]
[Result "1-0"]
[WhiteElo "2822"]
[BlackElo "2583"]
[TimeControl "180+2"]
[EndTime "14:26:39 PDT"]
[Termination "VerdeNotte won by checkmate"]

1. e4 {[%clk 0:03:01.3]} 1... e6 {[%clk 0:02:59.6]} 2. d3 {[%clk 0:03:01.5]}
2... d5 {[%clk 0:03:01.5]} 3. Qe2 {[%clk 0:03:01.4]} 3... Ne7 {[%clk 0:03:01.5]}
4. h4 {[%clk 0:02:59.9]} 4... c5 {[%clk 0:03:02.3]} 5. Nf3 {[%clk 0:02:58.4]}
5... Nbc6 {[%clk 0:03:03.3]} 6. h5 {[%clk 0:02:58.4]} 6... f6 {[%clk 0:03:00.9]}
7. exd5 {[%clk 0:02:56.3]} 7... Nxd5 {[%clk 0:02:59.2]} 8. Nc3 {[%clk
0:02:55.7]} 8... Nxc3 {[%clk 0:02:59.5]} 9. bxc3 {[%clk 0:02:57.2]} 9... e5
{[%clk 0:02:59.8]} 10. Qe4 {[%clk 0:02:47.1]} 10... Be6 {[%clk 0:02:56.8]} 11.
Rb1 {[%clk 0:02:38]} 11... Qd7 {[%clk 0:02:57.5]} 12. c4 {[%clk 0:02:32.5]}
12... Bf5 {[%clk 0:02:55.6]} 13. Qe2 {[%clk 0:02:27.8]} 13... Bd6 {[%clk
0:02:45.8]} 14. g3 {[%clk 0:02:25.9]} 14... Bg4 {[%clk 0:02:45.4]} 15. c3 {[%clk
0:02:21.4]} 15... O-O {[%clk 0:02:38.3]} 16. Bg2 {[%clk 0:02:21]} 16... Rae8
{[%clk 0:02:34.7]} 17. Qe4 {[%clk 0:01:59.2]} 17... Kh8 {[%clk 0:02:13]} 18. Nh4
{[%clk 0:01:23.8]} 18... f5 {[%clk 0:02:10.2]} 19. Qd5 {[%clk 0:01:22.5]} 19...
Bxh5 {[%clk 0:02:09]} 20. Rxb7 {[%clk 0:01:01.8]} 20... Qxb7 {[%clk 0:02:07.4]}
21. Qxd6 {[%clk 0:01:03.1]} 21... Rf6 {[%clk 0:01:56.4]} 22. Qxc5 {[%clk
0:01:00.7]} 22... e4 {[%clk 0:01:45.6]} 23. dxe4 {[%clk 0:00:55.5]} 23... Ne5
{[%clk 0:01:34]} 24. O-O {[%clk 0:00:52.4]} 24... fxe4 {[%clk 0:01:32.9]} 25.
Bg5 {[%clk 0:00:50]} 25... Rc6 {[%clk 0:01:23.1]} 26. Qd5 {[%clk 0:00:40.2]}
26... Bf3 {[%clk 0:01:10.8]} 27. Nxf3 {[%clk 0:00:39.8]} 27... Nxf3+ {[%clk
0:01:05.8]} 28. Bxf3 {[%clk 0:00:40.4]} 28... exf3 {[%clk 0:01:07.7]} 29. Qxf3
{[%clk 0:00:40.6]} 29... Qc8 {[%clk 0:01:06.2]} 30. Be3 {[%clk 0:00:39.9]} 30...
Rf8 {[%clk 0:01:01.7]} 31. Qd5 {[%clk 0:00:36.8]} 31... Rxc4 {[%clk 0:00:58.2]}
32. Bd4 {[%clk 0:00:36.9]} 32... Rc6 {[%clk 0:00:53.4]} 33. Re1 {[%clk
0:00:32.5]} 33... Rg6 {[%clk 0:00:47.8]} 34. Re7 {[%clk 0:00:28.3]} 34... Qh3
{[%clk 0:00:47.7]} 35. Qe5 {[%clk 0:00:23.2]} 35... Rgf6 {[%clk 0:00:31.9]} 36.
Rxa7 {[%clk 0:00:20.6]} 36... h5 {[%clk 0:00:24.1]} 37. Qg5 {[%clk 0:00:20.6]}
37... Qf5 {[%clk 0:00:16.8]} 38. Qxg7# {[%clk 0:00:20.4]} 1-0